[Event "Titled Tuesday Blitz June 6 Early 2023"]
[White "Grigorjev, Iljya"]
[Black "Veiga, Jose Francisco R P Neves"]
[WhiteFideId "24159565"]
[BlackFideId "1930087"]
[WhiteElo "2323"]
[BlackElo "2319"]
[Result "1-0"]
[Round "7"]
[TimeControl "180+2"]
[Date "2023.06.06"]
[WhiteClock "0:00:10"]
[BlackClock "0:00:05"]
[Board "30"]

1. d4 {[%clk 0:03:00]}  Nf6 {[%clk 0:02:41]} 2. c4 {[%clk 0:02:59]}  e6 {[%clk 0:02:40]} 3. Nc3 {[%clk 0:02:59]}  Bb4 {[%clk 0:02:39]} 4. e3 {[%clk 0:02:59]}  d5 {[%clk 0:02:39]} 5. a3 {[%clk 0:02:57]}  Bxc3+ {[%clk 0:02:36]} 6. bxc3 {[%clk 0:02:57]}  O-O {[%clk 0:02:36]} 7. cxd5 {[%clk 0:02:57]}  exd5 {[%clk 0:02:36]} 8. Bd3 {[%clk 0:02:57]}  c5 {[%clk 0:02:28]} 9. Ne2 {[%clk 0:02:53]}  b6 {[%clk 0:02:24]} 10. O-O {[%clk 0:02:51]}  Ba6 {[%clk 0:02:24]} 11. Bxa6 {[%clk 0:02:50]}  Nxa6 {[%clk 0:02:25]} 12. a4 {[%clk 0:02:51]}  Qc7 {[%clk 0:02:20]} 13. Nf4 {[%clk 0:02:50]}  Rfd8 {[%clk 0:02:19]} 14. Ba3 {[%clk 0:02:44]}  Rac8 {[%clk 0:02:16]} 15. Rc1 {[%clk 0:02:32]}  Qc6 {[%clk 0:02:09]} 16. g4 {[%clk 0:02:18]}  Nc7 {[%clk 0:02:06]} 17. f3 {[%clk 0:02:13]}  Ne6 {[%clk 0:02:05]} 18. Nd3 {[%clk 0:02:08]}  h5 {[%clk 0:01:57]} 19. h3 {[%clk 0:02:03]}  Re8 {[%clk 0:01:51]} 20. Ne5 {[%clk 0:02:02]}  Qc7 {[%clk 0:01:49]} 21. Kg2 {[%clk 0:01:58]}  Nd7 {[%clk 0:01:45]} 22. f4 {[%clk 0:01:52]}  f6 {[%clk 0:01:02]} 23. Nxd7 {[%clk 0:01:48]}  Qxd7 {[%clk 0:01:03]} 24. gxh5 {[%clk 0:01:49]}  Nd8 {[%clk 0:01:03]} 25. Rf3 {[%clk 0:01:40]}  Nf7 {[%clk 0:01:03]} 26. dxc5 {[%clk 0:01:30]}  bxc5 {[%clk 0:01:02]} 27. c4 {[%clk 0:01:31]}  d4 {[%clk 0:00:52]} 28. exd4 {[%clk 0:01:32]}  cxd4 {[%clk 0:00:53]} 29. Qd3 {[%clk 0:01:19]}  Qxa4 {[%clk 0:00:40]} 30. Rg3 {[%clk 0:01:08]}  Qc6+ {[%clk 0:00:35]} 31. Kh2 {[%clk 0:01:06]}  Re3 {[%clk 0:00:19]} 32. Rxe3 {[%clk 0:00:57]}  dxe3 {[%clk 0:00:20]} 33. Qxe3 {[%clk 0:00:58]}  Re8 {[%clk 0:00:20]} 34. Qf2 {[%clk 0:00:57]}  Nh6 {[%clk 0:00:17]} 35. c5 {[%clk 0:00:49]}  Nf5 {[%clk 0:00:17]} 36. Re1 {[%clk 0:00:49]}  a5 {[%clk 0:00:08]} 37. Rxe8+ {[%clk 0:00:44]}  Qxe8 {[%clk 0:00:09]} 38. Qc2 {[%clk 0:00:44]}  Qxh5 {[%clk 0:00:09]} 39. c6 {[%clk 0:00:43]}  Qf3 {[%clk 0:00:05]} 40. c7 {[%clk 0:00:36]}  Qxf4+ {[%clk 0:00:05]} 41. Kg1 {[%clk 0:00:33]}  Qg3+ {[%clk 0:00:06]} 42. Kf1 {[%clk 0:00:32]}  Ne3+ {[%clk 0:00:06]} 43. Ke2 {[%clk 0:00:33]}  Nxc2 {[%clk 0:00:07]} 44. c8=Q+ {[%clk 0:00:34]}  Kh7 {[%clk 0:00:07]} 45. Qxc2+ {[%clk 0:00:34]}  Qg6 {[%clk 0:00:04]} 46. Qb3 {[%clk 0:00:20]}  Qf5 {[%clk 0:00:03]} 47. Bc1 {[%clk 0:00:16]}  Kg6 {[%clk 0:00:03]} 48. Be3 {[%clk 0:00:17]}  a4 {[%clk 0:00:02]} 49. Qxa4 {[%clk 0:00:15]}  Qxh3 {[%clk 0:00:03]} 50. Qe8+ {[%clk 0:00:16]}  Kh7 {[%clk 0:00:03]} 51. Qe7 {[%clk 0:00:14]}  Qf5 {[%clk 0:00:02]} 52. Bd4 {[%clk 0:00:12]}  Qg4+ {[%clk 0:00:02]} 53. Kd3 {[%clk 0:00:13]}  Qg6+ {[%clk 0:00:03]} 54. Kc4 {[%clk 0:00:12]}  Qg5 {[%clk 0:00:04]} 55. Bc5 {[%clk 0:00:09]}  Qg4+ {[%clk 0:00:04]} 56. Kb5 {[%clk 0:00:10]}  Qg5 {[%clk 0:00:05]} 57. Kc6 {[%clk 0:00:10]}  Qg4 {[%clk 0:00:05]} 58. Bd6 {[%clk 0:00:10]}  Kg8 {[%clk 0:00:05]} 59. Qe8+ {[%clk 0:00:09]}  Kh7 {[%clk 0:00:06]} 60. Qf7 {[%clk 0:00:08]}  Qg6 {[%clk 0:00:05]} 61. Qe6 {[%clk 0:00:09]}  Qc2+ {[%clk 0:00:05]} 62. Kd7 {[%clk 0:00:09]}  Kh6 {[%clk 0:00:05]} 63. Bf4+ {[%clk 0:00:08]}  Kh7 {[%clk 0:00:06]} 64. Ke8 {[%clk 0:00:08]}  Qg6+ {[%clk 0:00:03]} 65. Kf8 {[%clk 0:00:08]}  Qh5 {[%clk 0:00:03]} 66. Qg8+ {[%clk 0:00:08]}  Kg6 {[%clk 0:00:03]} 67. Qf7+ {[%clk 0:00:07]}  Kf5 {[%clk 0:00:04]} 68. Qxh5+ {[%clk 0:00:08]}  Kxf4 {[%clk 0:00:04]} 69. Qg6 {[%clk 0:00:08]}  f5 {[%clk 0:00:04]} 70. Kxg7 {[%clk 0:00:09]}  Ke4 {[%clk 0:00:05]} 71. Kf6 {[%clk 0:00:10]} 1-0


[Site "https://www.chess.com"]

[Event "Titled Tuesday Blitz June 6 Early 2023"]
[White "Shuvalova, Polina"]
[Black "Galchenko, Matvey"]
[WhiteFideId "24171760"]
[BlackFideId "24175480"]
[WhiteElo "2281"]
[BlackElo "2423"]
[Result "0-1"]
[Round "7"]
[TimeControl "180+2"]
[Date "2023.06.06"]
[WhiteClock "0:00:06"]
[BlackClock "0:00:14"]
[Board "31"]

1. e4 {[%clk 0:03:00]}  e6 {[%clk 0:02:44]} 2. d4 {[%clk 0:03:00]}  d5 {[%clk 0:02:45]} 3. Nd2 {[%clk 0:02:59]}  a6 {[%clk 0:02:45]} 4. Bd3 {[%clk 0:02:56]}  c5 {[%clk 0:02:44]} 5. dxc5 {[%clk 0:02:50]}  Nf6 {[%clk 0:02:41]} 6. exd5 {[%clk 0:02:48]}  Qxd5 {[%clk 0:02:39]} 7. Ngf3 {[%clk 0:02:48]}  Qxc5 {[%clk 0:02:38]} 8. O-O {[%clk 0:02:48]}  Nbd7 {[%clk 0:02:38]} 9. Qe2 {[%clk 0:02:48]}  Qc7 {[%clk 0:02:36]} 10. Re1 {[%clk 0:02:47]}  b6 {[%clk 0:02:32]} 11. b3 {[%clk 0:02:46]}  Bb7 {[%clk 0:02:32]} 12. Bb2 {[%clk 0:02:46]}  Be7 {[%clk 0:02:32]} 13. Rad1 {[%clk 0:02:40]}  Nc5 {[%clk 0:02:31]} 14. Nc4 {[%clk 0:02:30]}  Nxd3 {[%clk 0:02:29]} 15. Rxd3 {[%clk 0:02:28]}  O-O {[%clk 0:02:26]} 16. Be5 {[%clk 0:02:25]}  Qc6 {[%clk 0:02:24]} 17. Qe3 {[%clk 0:02:15]}  Nd5 {[%clk 0:02:10]} 18. Qd4 {[%clk 0:01:59]}  f6 {[%clk 0:02:04]} 19. Bg3 {[%clk 0:01:58]}  e5 {[%clk 0:02:01]} 20. Qg4 {[%clk 0:01:25]}  Nb4 {[%clk 0:01:50]} 21. Rd2 {[%clk 0:01:15]}  Rad8 {[%clk 0:01:39]} 22. Red1 {[%clk 0:01:11]}  Nxc2 {[%clk 0:01:25]} 23. Nh4 {[%clk 0:00:43]}  Nd4 {[%clk 0:01:14]} 24. f3 {[%clk 0:00:31]}  Bc8 {[%clk 0:00:37]} 25. Qh5 {[%clk 0:00:28]}  b5 {[%clk 0:00:36]} 26. Ne3 {[%clk 0:00:25]}  Qc3 {[%clk 0:00:28]} 27. Bf2 {[%clk 0:00:21]}  Bc5 {[%clk 0:00:24]} 28. Kh1 {[%clk 0:00:18]}  Be6 {[%clk 0:00:22]} 29. h3 {[%clk 0:00:14]}  Nc6 {[%clk 0:00:18]} 30. Rxd8 {[%clk 0:00:11]}  Nxd8 {[%clk 0:00:19]} 31. Ng4 {[%clk 0:00:07]}  Bxg4 {[%clk 0:00:14]} 32. Qxg4 {[%clk 0:00:06]}  Bxf2 {[%clk 0:00:15]} 33. Kh2 {[%clk 0:00:02]}  Qe3 {[%clk 0:00:10]} 34. Qxg7+ {[%clk 0:00:01]}  Kxg7 {[%clk 0:00:10]} 35. Nf5+ {[%clk 0:00:02]}  Kg6 {[%clk 0:00:10]} 36. Nxe3 {[%clk 0:00:03]}  Bxe3 {[%clk 0:00:11]} 37. g4 {[%clk 0:00:03]}  Bf4+ {[%clk 0:00:11]} 38. Kg2 {[%clk 0:00:04]}  Ne6 {[%clk 0:00:11]} 39. Rd6 {[%clk 0:00:04]}  Nd4 {[%clk 0:00:11]} 40. Rd7 {[%clk 0:00:03]}  h5 {[%clk 0:00:12]} 41. h4 {[%clk 0:00:04]}  Rc8 {[%clk 0:00:11]} 42. gxh5+ {[%clk 0:00:04]}  Kxh5 {[%clk 0:00:12]} 43. Rh7+ {[%clk 0:00:04]}  Kg6 {[%clk 0:00:12]} 44. Ra7 {[%clk 0:00:05]}  Rc2+ {[%clk 0:00:13]} 45. Kh3 {[%clk 0:00:05]}  Rh2+ {[%clk 0:00:13]} 46. Kg4 {[%clk 0:00:06]}  f5# {[%clk 0:00:14]} 0-1


[Site "https://www.chess.com"]

[Event "Titled Tuesday Blitz June 6 Early 2023"]
[White "Sadykov, Ramil"]
[Black "Dragnev, Valentin"]
[WhiteFideId "24113590"]
[BlackFideId "1634852"]
[WhiteElo "2245"]
[BlackElo "2487"]
[Result "1-0"]
[Round "7"]
[TimeControl "180+2"]
[Date "2023.06.06"]
[WhiteClock "0:00:03"]
[BlackClock "0:00:05"]
[Board "34"]

1. Nf3 {[%clk 0:03:00]}  Nf6 {[%clk 0:02:56]} 2. c4 {[%clk 0:02:58]}  b6 {[%clk 0:02:55]} 3. g3 {[%clk 0:02:57]}  c5 {[%clk 0:02:55]} 4. Bg2 {[%clk 0:02:57]}  Bb7 {[%clk 0:02:55]} 5. O-O {[%clk 0:02:57]}  g6 {[%clk 0:02:56]} 6. Nc3 {[%clk 0:02:54]}  Bg7 {[%clk 0:02:56]} 7. d4 {[%clk 0:02:49]}  cxd4 {[%clk 0:02:57]} 8. Nxd4 {[%clk 0:02:50]}  Bxg2 {[%clk 0:02:57]} 9. Kxg2 {[%clk 0:02:51]}  Qc8 {[%clk 0:02:57]} 10. Qd3 {[%clk 0:02:51]}  Nc6 {[%clk 0:02:57]} 11. Nxc6 {[%clk 0:02:34]}  Qxc6+ {[%clk 0:02:58]} 12. f3 {[%clk 0:02:31]}  Rc8 {[%clk 0:02:58]} 13. b3 {[%clk 0:02:31]}  O-O {[%clk 0:02:37]} 14. e4 {[%clk 0:02:27]}  d6 {[%clk 0:02:26]} 15. Be3 {[%clk 0:02:23]}  e6 {[%clk 0:02:25]} 16. Rfd1 {[%clk 0:02:22]}  Rfd8 {[%clk 0:02:22]} 17. Nb5 {[%clk 0:02:22]}  Rd7 {[%clk 0:02:19]} 18. Bf4 {[%clk 0:02:05]}  Nh5 {[%clk 0:02:13]} 19. Rac1 {[%clk 0:01:41]}  Nxf4+ {[%clk 0:02:11]} 20. gxf4 {[%clk 0:01:42]}  Bh6 {[%clk 0:02:12]} 21. Nd4 {[%clk 0:01:34]}  Qc5 {[%clk 0:02:12]} 22. Ne2 {[%clk 0:01:33]}  e5 {[%clk 0:02:05]} 23. Qd5 {[%clk 0:01:19]}  Qe3 {[%clk 0:02:04]} 24. Qd2 {[%clk 0:01:16]}  Qc5 {[%clk 0:01:40]} 25. Rc3 {[%clk 0:01:13]}  exf4 {[%clk 0:01:37]} 26. Qd5 {[%clk 0:01:13]}  Qa3 {[%clk 0:01:32]} 27. Rc2 {[%clk 0:01:08]}  Rc5 {[%clk 0:01:30]} 28. Qa8+ {[%clk 0:01:02]}  Kg7 {[%clk 0:01:30]} 29. Nc3 {[%clk 0:00:58]}  Rg5+ {[%clk 0:01:25]} 30. Kh1 {[%clk 0:00:56]}  Qc5 {[%clk 0:01:26]} 31. Nd5 {[%clk 0:00:53]}  Re5 {[%clk 0:01:14]} 32. b4 {[%clk 0:00:46]}  Rxd5 {[%clk 0:01:06]} 33. Qxd5 {[%clk 0:00:41]}  Qxb4 {[%clk 0:01:03]} 34. e5 {[%clk 0:00:37]}  Bg5 {[%clk 0:00:35]} 35. e6 {[%clk 0:00:33]}  Qa4 {[%clk 0:00:22]} 36. Rcd2 {[%clk 0:00:17]}  fxe6 {[%clk 0:00:21]} 37. Qxg5 {[%clk 0:00:17]}  e5 {[%clk 0:00:20]} 38. Qg4 {[%clk 0:00:13]}  Qc6 {[%clk 0:00:15]} 39. Kg2 {[%clk 0:00:11]}  Rd8 {[%clk 0:00:13]} 40. Qe6 {[%clk 0:00:11]}  Kh6 {[%clk 0:00:12]} 41. Rxd6 {[%clk 0:00:11]}  Rxd6 {[%clk 0:00:11]} 42. Rxd6 {[%clk 0:00:11]}  Qa4 {[%clk 0:00:11]} 43. Qh3+ {[%clk 0:00:04]}  Kg5 {[%clk 0:00:09]} 44. Qg4+ {[%clk 0:00:03]}  Kh6 {[%clk 0:00:09]} 45. Rd7 {[%clk 0:00:03]}  Qxa2+ {[%clk 0:00:06]} 46. Kh3 {[%clk 0:00:02]}  g5 {[%clk 0:00:05]} 47. Qe6+ {[%clk 0:00:02]}  Kh5 {[%clk 0:00:05]} 48. Rxh7# {[%clk 0:00:03]} 1-0


[Site "https://www.chess.com"]

[Event "Titled Tuesday Blitz June 6 Early 2023"]
[White "Vlassov, Nikolai"]
[Black "Fridman, Daniel"]
[WhiteFideId "4103360"]
[BlackFideId "11600454"]
[WhiteElo "2324"]
[BlackElo "2538"]
[Result "0-1"]
[Round "7"]
[TimeControl "180+2"]
[Date "2023.06.06"]
[WhiteClock "0:00:01"]
[BlackClock "0:00:23"]
[Board "35"]

1. e4 {[%clk 0:03:00]}  c6 {[%clk 0:02:56]} 2. d4 {[%clk 0:03:00]}  d5 {[%clk 0:02:57]} 3. e5 {[%clk 0:03:01]}  c5 {[%clk 0:02:56]} 4. dxc5 {[%clk 0:03:01]}  Nc6 {[%clk 0:02:57]} 5. Bb5 {[%clk 0:03:00]}  e6 {[%clk 0:02:55]} 6. Be3 {[%clk 0:02:58]}  Ne7 {[%clk 0:02:52]} 7. Nf3 {[%clk 0:02:57]}  Bd7 {[%clk 0:02:52]} 8. Bxc6 {[%clk 0:02:51]}  Bxc6 {[%clk 0:02:52]} 9. O-O {[%clk 0:02:48]}  Nf5 {[%clk 0:02:52]} 10. Bd4 {[%clk 0:02:47]}  Nxd4 {[%clk 0:02:44]} 11. Qxd4 {[%clk 0:02:45]}  Bb5 {[%clk 0:02:41]} 12. Re1 {[%clk 0:02:39]}  Rc8 {[%clk 0:02:42]} 13. b4 {[%clk 0:02:38]}  b6 {[%clk 0:02:41]} 14. cxb6 {[%clk 0:02:29]}  axb6 {[%clk 0:02:40]} 15. c3 {[%clk 0:02:20]}  Qc7 {[%clk 0:02:31]} 16. a4 {[%clk 0:02:19]}  Ra8 {[%clk 0:02:25]} 17. Nbd2 {[%clk 0:01:47]}  Rxa4 {[%clk 0:02:19]} 18. Rxa4 {[%clk 0:01:46]}  Bxa4 {[%clk 0:02:20]} 19. Ra1 {[%clk 0:01:45]}  b5 {[%clk 0:02:20]} 20. h4 {[%clk 0:01:33]}  Be7 {[%clk 0:02:12]} 21. Ng5 {[%clk 0:01:28]}  h6 {[%clk 0:02:04]} 22. Nh3 {[%clk 0:01:23]}  O-O {[%clk 0:02:04]} 23. Nf4 {[%clk 0:01:14]}  Bxh4 {[%clk 0:01:53]} 24. Nh5 {[%clk 0:00:52]}  Bg5 {[%clk 0:01:44]} 25. f4 {[%clk 0:00:30]}  Be7 {[%clk 0:01:40]} 26. Qe3 {[%clk 0:00:13]}  Rc8 {[%clk 0:01:37]} 27. Ra3 {[%clk 0:00:12]}  g6 {[%clk 0:01:17]} 28. Nf6+ {[%clk 0:00:12]}  Kg7 {[%clk 0:01:15]} 29. Qd4 {[%clk 0:00:11]}  h5 {[%clk 0:01:06]} 30. g4 {[%clk 0:00:11]}  hxg4 {[%clk 0:01:05]} 31. Nxg4 {[%clk 0:00:11]}  Rh8 {[%clk 0:01:02]} 32. Kg2 {[%clk 0:00:11]}  Qd8 {[%clk 0:00:55]} 33. Nf3 {[%clk 0:00:10]}  Bd1 {[%clk 0:00:47]} 34. Qxd1 {[%clk 0:00:09]}  Qg8 {[%clk 0:00:35]} 35. Qd4 {[%clk 0:00:08]}  Qh7 {[%clk 0:00:35]} 36. Nf2 {[%clk 0:00:07]}  Bh4 {[%clk 0:00:33]} 37. Ra1 {[%clk 0:00:05]}  Bxf2 {[%clk 0:00:33]} 38. Kxf2 {[%clk 0:00:06]}  Qh3 {[%clk 0:00:33]} 39. Rg1 {[%clk 0:00:06]}  Ra8 {[%clk 0:00:30]} 40. Qd2 {[%clk 0:00:05]}  Ra3 {[%clk 0:00:29]} 41. Rg3 {[%clk 0:00:05]}  Qh1 {[%clk 0:00:29]} 42. Qb2 {[%clk 0:00:04]}  Ra1 {[%clk 0:00:28]} 43. f5 {[%clk 0:00:01]}  exf5 {[%clk 0:00:26]} 44. e6 {[%clk 0:00:01]}  f4 {[%clk 0:00:22]} 45. c4+ {[%clk 0:00:01]}  f6 {[%clk 0:00:23]} 0-1


[Site "https://www.chess.com"]

[Event "Titled Tuesday Blitz June 6 Early 2023"]
[White "Sokolovsky, Yahli"]
[Black "Agibileg, Uurtsaikh"]
[WhiteFideId "2820242"]
[BlackFideId "4901606"]
[WhiteElo "2389"]
[BlackElo "2353"]
[Result "0-1"]
[Round "7"]
[TimeControl "180+2"]
[Date "2023.06.06"]
[WhiteClock "0:00:02"]
[BlackClock "0:01:36"]
[Board "39"]

1. b3 {[%clk 0:03:00]}  e5 {[%clk 0:02:58]} 2. Bb2 {[%clk 0:03:01]}  Nc6 {[%clk 0:02:58]} 3. e3 {[%clk 0:03:02]}  Nf6 {[%clk 0:02:56]} 4. Nf3 {[%clk 0:03:02]}  d6 {[%clk 0:02:56]} 5. d4 {[%clk 0:03:03]}  exd4 {[%clk 0:02:55]} 6. exd4 {[%clk 0:03:03]}  d5 {[%clk 0:02:53]} 7. Bb5 {[%clk 0:02:57]}  Be7 {[%clk 0:02:50]} 8. Ne5 {[%clk 0:02:47]}  O-O {[%clk 0:02:43]} 9. Bxc6 {[%clk 0:02:31]}  bxc6 {[%clk 0:02:44]} 10. Nxc6 {[%clk 0:02:32]}  Qd7 {[%clk 0:02:45]} 11. Nxe7+ {[%clk 0:02:32]}  Qxe7+ {[%clk 0:02:43]} 12. Qe2 {[%clk 0:02:33]}  Qd6 {[%clk 0:02:34]} 13. Ba3 {[%clk 0:02:28]}  Qc6 {[%clk 0:02:26]} 14. Bxf8 {[%clk 0:02:20]}  Ba6 {[%clk 0:02:26]} 15. c4 {[%clk 0:02:07]}  dxc4 {[%clk 0:02:14]} 16. Be7 {[%clk 0:01:30]}  cxb3 {[%clk 0:02:12]} 17. Qb2 {[%clk 0:00:29]}  Re8 {[%clk 0:02:05]} 18. axb3 {[%clk 0:00:29]}  Rxe7+ {[%clk 0:02:05]} 19. Kd1 {[%clk 0:00:30]}  Be2+ {[%clk 0:02:05]} 20. Qxe2 {[%clk 0:00:25]}  Rxe2 {[%clk 0:02:04]} 21. Kxe2 {[%clk 0:00:26]}  Qe4+ {[%clk 0:02:01]} 22. Kf1 {[%clk 0:00:22]}  Qd3+ {[%clk 0:01:58]} 23. Ke1 {[%clk 0:00:22]}  Nd5 {[%clk 0:01:46]} 24. g3 {[%clk 0:00:02]}  g5 {[%clk 0:01:36]} 25. Nd2 {[%clk 0:00:02]}  Nc3 {[%clk 0:01:36]} 0-1


[Site "https://www.chess.com"]

[Event "Titled Tuesday Blitz June 6 Early 2023"]
[White "Djordjevic, Vuk"]
[Black "Martic, Ivan"]
[WhiteFideId "902098"]
[BlackFideId "929301"]
[WhiteElo "2463"]
[BlackElo "2346"]
[Result "1-0"]
[Round "7"]
[TimeControl "180+2"]
[Date "2023.06.06"]
[WhiteClock "0:00:21"]
[BlackClock "0:00:07"]
[Board "41"]

1. d4 {[%clk 0:03:00]}  Nf6 {[%clk 0:02:24]} 2. Bg5 {[%clk 0:02:55]}  d5 {[%clk 0:02:23]} 3. Bxf6 {[%clk 0:02:46]}  exf6 {[%clk 0:02:23]} 4. e3 {[%clk 0:02:45]}  Bd6 {[%clk 0:02:17]} 5. c4 {[%clk 0:02:45]}  dxc4 {[%clk 0:02:16]} 6. Bxc4 {[%clk 0:02:45]}  f5 {[%clk 0:02:11]} 7. Nc3 {[%clk 0:02:46]}  O-O {[%clk 0:02:10]} 8. Nf3 {[%clk 0:02:42]}  c6 {[%clk 0:02:10]} 9. O-O {[%clk 0:02:41]}  Nd7 {[%clk 0:02:10]} 10. Qc2 {[%clk 0:02:40]}  Nf6 {[%clk 0:02:10]} 11. Rab1 {[%clk 0:02:40]}  Qe7 {[%clk 0:02:09]} 12. h3 {[%clk 0:02:29]}  Ne4 {[%clk 0:02:07]} 13. Nd2 {[%clk 0:02:26]}  Re8 {[%clk 0:01:58]} 14. Bd3 {[%clk 0:02:26]}  g6 {[%clk 0:01:56]} 15. Ndxe4 {[%clk 0:02:23]}  fxe4 {[%clk 0:01:54]} 16. Nxe4 {[%clk 0:02:23]}  Bc7 {[%clk 0:01:52]} 17. Qc5 {[%clk 0:02:18]}  Bf5 {[%clk 0:01:46]} 18. Qxe7 {[%clk 0:02:06]}  Rxe7 {[%clk 0:01:47]} 19. Nc5 {[%clk 0:02:06]}  Bxd3 {[%clk 0:01:41]} 20. Nxd3 {[%clk 0:02:07]}  Bd6 {[%clk 0:01:42]} 21. Rbc1 {[%clk 0:02:07]}  a5 {[%clk 0:01:40]} 22. a4 {[%clk 0:02:04]}  Kg7 {[%clk 0:01:37]} 23. Rfd1 {[%clk 0:01:59]}  f5 {[%clk 0:01:36]} 24. Rc4 {[%clk 0:01:22]}  Ra6 {[%clk 0:01:35]} 25. d5 {[%clk 0:01:20]}  cxd5 {[%clk 0:01:31]} 26. Rd4 {[%clk 0:01:20]}  Rb6 {[%clk 0:01:18]} 27. Rxd5 {[%clk 0:01:18]}  Bc7 {[%clk 0:01:18]} 28. Rxa5 {[%clk 0:01:05]}  Rxb2 {[%clk 0:01:07]} 29. Rxf5 {[%clk 0:00:49]}  Ra2 {[%clk 0:00:58]} 30. Rd5 {[%clk 0:00:40]}  Rxa4 {[%clk 0:00:58]} 31. Nc5 {[%clk 0:00:40]}  Rc4 {[%clk 0:00:22]} 32. Rd7 {[%clk 0:00:39]}  Bd8 {[%clk 0:00:08]} 33. Ne6+ {[%clk 0:00:28]}  Kf6 {[%clk 0:00:07]} 34. Nxd8 {[%clk 0:00:28]}  Rxd7 {[%clk 0:00:06]} 35. Rxd7 {[%clk 0:00:29]}  b5 {[%clk 0:00:06]} 36. Rxh7 {[%clk 0:00:21]}  b4 {[%clk 0:00:07]} 37. Rb7 {[%clk 0:00:21]} 1-0


[Site "https://www.chess.com"]

[Event "Titled Tuesday Blitz June 6 Early 2023"]
[White "Danielyan, Vahe"]
[Black "Wadsworth, Matthew J"]
[WhiteFideId "13304828"]
[BlackFideId "415804"]
[WhiteElo "2423"]
[BlackElo "2347"]
[Result "1-0"]
[Round "7"]
[TimeControl "180+2"]
[Date "2023.06.06"]
[WhiteClock "0:02:15"]
[BlackClock "0:00:19"]
[Board "43"]

1. e4 {[%clk 0:03:00]}  c5 {[%clk 0:02:58]} 2. Nc3 {[%clk 0:03:00]}  e6 {[%clk 0:02:58]} 3. g3 {[%clk 0:02:55]}  Nc6 {[%clk 0:02:58]} 4. Bg2 {[%clk 0:02:56]}  Nf6 {[%clk 0:02:57]} 5. Nge2 {[%clk 0:02:56]}  Be7 {[%clk 0:02:56]} 6. O-O {[%clk 0:02:56]}  O-O {[%clk 0:02:55]} 7. d4 {[%clk 0:02:57]}  cxd4 {[%clk 0:02:51]} 8. Nxd4 {[%clk 0:02:58]}  a6 {[%clk 0:02:48]} 9. Nxc6 {[%clk 0:02:56]}  bxc6 {[%clk 0:02:48]} 10. e5 {[%clk 0:02:57]}  Nd5 {[%clk 0:02:48]} 11. Ne4 {[%clk 0:02:57]}  f5 {[%clk 0:02:41]} 12. Nd6 {[%clk 0:02:55]}  Bxd6 {[%clk 0:02:22]} 13. exd6 {[%clk 0:02:56]}  Qf6 {[%clk 0:02:12]} 14. c4 {[%clk 0:02:56]}  Nb6 {[%clk 0:02:09]} 15. Qc2 {[%clk 0:02:54]}  a5 {[%clk 0:02:01]} 16. Be3 {[%clk 0:02:52]}  Rb8 {[%clk 0:02:01]} 17. Rad1 {[%clk 0:02:51]}  Ba6 {[%clk 0:01:58]} 18. b3 {[%clk 0:02:50]}  e5 {[%clk 0:01:48]} 19. Rfe1 {[%clk 0:02:49]}  f4 {[%clk 0:01:41]} 20. gxf4 {[%clk 0:02:45]}  exf4 {[%clk 0:01:41]} 21. Bd4 {[%clk 0:02:45]}  Qh6 {[%clk 0:01:09]} 22. Re7 {[%clk 0:02:44]}  Rf7 {[%clk 0:01:07]} 23. Rxf7 {[%clk 0:02:44]}  Kxf7 {[%clk 0:01:07]} 24. Qf5+ {[%clk 0:02:42]}  Kg8 {[%clk 0:01:05]} 25. Bxb6 {[%clk 0:02:42]}  Rxb6 {[%clk 0:00:57]} 26. Qxd7 {[%clk 0:02:39]}  Rb8 {[%clk 0:00:57]} 27. Qxc6 {[%clk 0:02:28]}  Qg5 {[%clk 0:00:42]} 28. d7 {[%clk 0:02:24]}  f3 {[%clk 0:00:19]} 29. Qxf3 {[%clk 0:02:15]} 1-0


[Site "https://www.chess.com"]

[Event "Titled Tuesday Blitz June 6 Early 2023"]
[White "Terletsky, Oleg"]
[Black "Csonka, Balazs"]
[WhiteFideId "14116774"]
[BlackFideId "742910"]
[WhiteElo "2126"]
[BlackElo "2404"]
[Result "0-1"]
[Round "7"]
[TimeControl "180+2"]
[Date "2023.06.06"]
[WhiteClock "0:00:06"]
[BlackClock "0:00:04"]
[Board "44"]

1. e4 {[%clk 0:03:00]}  c5 {[%clk 0:02:51]} 2. Nf3 {[%clk 0:03:00]}  d6 {[%clk 0:02:51]} 3. d4 {[%clk 0:03:00]}  cxd4 {[%clk 0:02:52]} 4. Nxd4 {[%clk 0:03:00]}  Nf6 {[%clk 0:02:52]} 5. Nc3 {[%clk 0:03:01]}  a6 {[%clk 0:02:52]} 6. Bc4 {[%clk 0:03:01]}  e6 {[%clk 0:02:51]} 7. O-O {[%clk 0:03:01]}  Nc6 {[%clk 0:02:49]} 8. Kh1 {[%clk 0:02:58]}  Be7 {[%clk 0:02:45]} 9. f4 {[%clk 0:02:57]}  O-O {[%clk 0:02:40]} 10. f5 {[%clk 0:02:57]}  d5 {[%clk 0:02:30]} 11. exd5 {[%clk 0:02:37]}  exd5 {[%clk 0:02:29]} 12. Bb3 {[%clk 0:02:18]}  Na5 {[%clk 0:01:23]} 13. Bg5 {[%clk 0:01:56]}  Nxb3 {[%clk 0:01:22]} 14. axb3 {[%clk 0:01:57]}  Re8 {[%clk 0:01:15]} 15. Qf3 {[%clk 0:01:45]}  Ne4 {[%clk 0:00:56]} 16. Bxe7 {[%clk 0:01:43]}  Rxe7 {[%clk 0:00:57]} 17. Rae1 {[%clk 0:01:23]}  Nd2 {[%clk 0:00:46]} 18. Qxd5 {[%clk 0:01:02]}  Rd7 {[%clk 0:00:31]} 19. Qe5 {[%clk 0:00:57]}  f6 {[%clk 0:00:12]} 20. Qe8+ {[%clk 0:00:50]}  Qxe8 {[%clk 0:00:12]} 21. Rxe8+ {[%clk 0:00:51]}  Kf7 {[%clk 0:00:12]} 22. Rfe1 {[%clk 0:00:52]}  b5 {[%clk 0:00:11]} 23. Nd5 {[%clk 0:00:33]}  Raa7 {[%clk 0:00:03]} 24. Rxc8 {[%clk 0:00:17]}  Rxd5 {[%clk 0:00:03]} 25. Nc6 {[%clk 0:00:14]}  Rad7 {[%clk 0:00:03]} 26. Ree8 {[%clk 0:00:10]}  Rxf5 {[%clk 0:00:03]} 27. Rf8+ {[%clk 0:00:08]}  Kg6 {[%clk 0:00:03]} 28. h3 {[%clk 0:00:08]}  Rf1+ {[%clk 0:00:02]} 29. Kh2 {[%clk 0:00:09]}  Rf2 {[%clk 0:00:03]} 30. Kg3 {[%clk 0:00:08]}  Re2 {[%clk 0:00:03]} 31. Nd4 {[%clk 0:00:07]}  Rxd4 {[%clk 0:00:03]} 32. c3 {[%clk 0:00:07]}  Rd3+ {[%clk 0:00:02]} 33. Kh2 {[%clk 0:00:05]}  Nf3+ {[%clk 0:00:03]} 34. Kg3 {[%clk 0:00:06]}  Ne1+ {[%clk 0:00:03]} 35. Kf4 {[%clk 0:00:06]}  Nxg2+ {[%clk 0:00:03]} 36. Kg4 {[%clk 0:00:06]}  Re4# {[%clk 0:00:04]} 0-1


[Site "https://www.chess.com"]